bitfinex-derivatives/quotes_BTCF0:USTF0_20250827
["timestamp","ask_amount","ask_price","bid_price","bid_amount"]
[1756311873532,1.60602716,112120.0,112110.0,0.16188]
[1756311873737,1.74048546,112120.0,112110.0,0.16188]
[1756311874031,1.74048546,112120.0,112110.0,0.12723]
[1756311874337,1.74044546,112120.0,112110.0,0.16188]
[1756311875539,1.76348546,112120.0,112110.0,0.16188]
[1756311875728,0.92308546,112120.0,112110.0,0.16188]
[1756311875929,1.76344546,112120.0,112110.0,0.16188]
[1756311876132,0.21254223,112120.0,112110.0,1.04935943]
[1756311876338,0.0911683,112120.0,112110.0,1.04935943]
[1756311877339,0.2622083,112120.0,112110.0,0.6118562]
[1756311877538,0.2391683,112120.0,112110.0,1.04935943]
[1756311877738,0.2381683,112120.0,112110.0,1.04935943]
[1756311879432,0.2381683,112120.0,112110.0,1.88963943]
[1756311880141,0.2612083,112120.0,112110.0,1.88963943]
[1756311880743,0.3762683,112120.0,112110.0,0.52268]
[1756311880937,0.3762683,112120.0,112110.0,0.96018323]
[1756311881543,0.81377153,112120.0,112110.0,0.52268]
[1756311881931,0.3762683,112120.0,112110.0,0.52268]
[1756311882746,0.3762683,112120.0,112110.0,1.04935923]
[1756311882942,0.3762683,112120.0,112110.0,0.96018323]
[1756311884143,0.2381683,112120.0,112110.0,0.96018323]
[1756311884340,0.2381683,112120.0,112110.0,1.04935933]
[1756311885838,0.2381683,112120.0,112110.0,1.88943933]
[1756311886844,0.0901683,112120.0,112110.0,1.36276]
[1756311887045,0.0901683,112120.0,112110.0,1.80026323]
[1756311887236,0.1132083,112120.0,112110.0,1.80026323]
[1756311887437,0.2282683,112120.0,112110.0,1.80022323]
[1756311887746,0.2282683,112120.0,112110.0,0.96018323]
[1756311887941,1.90377153,112120.0,112110.0,0.02335]
[1756311888142,2.29170646,112120.0,112110.0,0.04574]
[1756311888445,0.2474719,112090.0,112080.0,0.01145375]
[1756311888641,1.88573513,112090.0,112080.0,0.03424375]
[1756311889234,1.95616461,112090.0,112080.0,0.03424375]
[1756311889641,1.95616461,112090.0,112080.0,0.03624375]
[1756311889843,1.95616461,112090.0,112080.0,0.04024375]
[1756311890240,1.11620461,112090.0,112080.0,0.04024375]
[1756311890441,1.95616461,112090.0,112080.0,0.12482375]
[1756311890644,1.95716461,112090.0,112080.0,0.12482375]
[1756311891145,2.10516461,112090.0,112080.0,0.004]
[1756311891342,0.139256,112060.0,112050.0,1.0073036]
[1756311891542,0.608296,112060.0,112050.0,0.11957]
[1756311891741,0.608296,112060.0,112050.0,0.64629713]
[1756311891936,0.3886,112060.0,112050.0,0.67920713]
[1756311892152,0.0278,112060.0,112050.0,0.67920713]
[1756311892445,0.05921771,112060.0,112050.0,1.04000713]
[1756311892947,0.14843371,112060.0,112050.0,1.88292713]
[1756311893140,0.63971371,112060.0,112050.0,1.52212713]
[1756311893345,0.63971371,112060.0,112050.0,0.97468]
[1756311893547,0.63971371,112060.0,112050.0,1.41218323]
[1756311893747,0.63971371,112060.0,112050.0,1.52312713]
[1756311893936,0.63971371,112060.0,112050.0,1.61312713]
[1756311894548,0.63971371,112060.0,112050.0,1.52312713]
[1756311894743,0.63971371,112060.0,112050.0,1.50240713]
[1756311894945,2.16709694,112060.0,112050.0,0.004]
[1756311895146,1.32721694,112060.0,112050.0,0.004]
[1756311895348,2.16713694,112060.0,112050.0,0.004]
[1756311895549,0.0892319,112040.0,112030.0,0.11274]
[1756311895748,1.04581513,112040.0,112030.0,0.11274]
[1756311896051,0.2475119,112040.0,112030.0,0.68322303]
[1756311896244,0.09209,112040.0,112030.0,0.68322303]
[1756311896449,0.0278,112040.0,112030.0,0.68322303]
[1756311896743,0.5000673,112050.0,112040.0,0.1310419]
[1756311896948,0.4778273,112050.0,112040.0,0.68321513]
[1756311897149,0.5559573,112050.0,112040.0,0.68321513]
[1756311897447,0.6083073,112050.0,112040.0,0.2457119]
[1756311898445,0.6083073,112050.0,112040.0,0.2477119]
[1756311898745,0.6083073,112050.0,112040.0,0.2507119]
[1756311899145,0.51908,112050.0,112040.0,0.2507119]
[1756311899350,0.5749539,112050.0,112040.0,0.2507119]
[1756311899847,0.6116239,112050.0,112040.0,0.13676]
[1756311900150,0.5749539,112050.0,112040.0,0.2507119]
[1756311900348,0.38873264,112050.0,112040.0,1.85406131]
[1756311900657,0.02793264,112050.0,112040.0,2.21486131]
[1756311900849,0.05931771,112060.0,112050.0,0.2502039]
[1756311901048,0.08724822,112060.0,112050.0,1.12435331]
[1756311901250,0.03141771,112060.0,112050.0,1.12435331]
[1756311901552,0.1761626,112070.0,112060.0,0.2501959]
[1756311901751,0.20407943,112070.0,112060.0,1.60354531]
[1756311902052,0.20407943,112070.0,112060.0,1.96434531]
[1756311902350,0.28243943,112070.0,112060.0,1.96434531]
[1756311902551,0.24576943,112070.0,112060.0,1.96434531]
[1756311902751,0.17612353,112070.0,112060.0,1.96434531]
[1756311902946,0.05581683,112070.0,112060.0,2.21434531]
[1756311903152,0.14502483,112070.0,112060.0,2.21434531]
[1756311903353,0.02791683,112070.0,112060.0,2.21434531]
[1756311903552,0.14502483,112070.0,112060.0,2.21434531]
[1756311904653,0.02791683,112070.0,112060.0,2.21434531]
[1756311905348,0.5263964,112090.0,112080.0,0.25018]
[1756311905546,0.4778964,112090.0,112080.0,0.76352941]
[1756311905747,0.1989264,112090.0,112080.0,1.09014]
[1756311905955,0.2355964,112090.0,112080.0,1.09014]
[1756311906146,0.2545064,112090.0,112080.0,0.16098]
[1756311906343,0.6153064,112090.0,112080.0,0.95799]
[1756311906548,0.25451,112080.0,112070.0,0.95799]
[1756311906846,0.61531,112080.0,112070.0,0.95799]
[1756311907145,0.61531,112080.0,112070.0,1.090148]
[1756311907349,0.0279,112080.0,112070.0,1.450948]
[1756311907551,0.5351678,112090.0,112080.0,0.1549701]
[1756311907745,0.5607278,112090.0,112080.0,0.2501801]
[1756311907945,0.1999221,112090.0,112080.0,1.12432951]
[1756311908153,0.1989221,112090.0,112080.0,1.12432951]
[1756311908554,0.1989221,112090.0,112080.0,0.6109801]
[1756311908852,0.0279,112090.0,112080.0,1.12432951]
[1756311909048,0.001,112090.0,112080.0,1.37432951]
[1756311909353,0.001,112090.0,112080.0,2.21424951]
[1756311909653,0.002,112090.0,112080.0,2.21424951]
[1756311909841,0.002,112090.0,112080.0,2.23383267]
[1756311910849,0.002,112090.0,112080.0,0.88056326]
[1756311911052,0.001,112090.0,112080.0,2.23587267]
[1756311911248,0.25014582,112100.0,112090.0,0.1894121]
[1756311911553,0.28681582,112100.0,112090.0,1.12432151]
[1756311911742,0.28681582,112100.0,112090.0,0.6109721]
[1756311911947,0.28681582,112100.0,112090.0,1.0674921]
[1756311912152,0.64761582,112100.0,112090.0,1.0921721]
[1756311912353,0.64761582,112100.0,112090.0,1.0920921]
[1756311912751,0.64961582,112100.0,112090.0,1.0920121]
[1756311913151,0.64961582,112100.0,112090.0,0.16098]
[1756311913454,0.64961582,112100.0,112090.0,1.0669721]
[1756311913751,0.64961582,112100.0,112090.0,1.0916921]
[1756311914253,0.6975545,112100.0,112090.0,1.0916921]
[1756311914447,0.6086433,112100.0,112090.0,1.60504151]
[1756311914646,0.1101592,112100.0,112090.0,1.96584151]
[1756311914847,0.06222052,112100.0,112090.0,1.96584151]
[1756311915655,0.1714434,112100.0,112090.0,1.4524921]
[1756311915949,0.0822592,112100.0,112090.0,1.96584151]
[1756311916254,0.0822592,112100.0,112090.0,1.12432151]
[1756311916750,0.0822592,112100.0,112090.0,1.90596151]
[1756311916945,0.1993434,112100.0,112090.0,1.90596151]
[1756311917362,0.22717905,112100.0,112090.0,1.90596151]
[1756311917749,0.22717905,112100.0,112090.0,1.06340151]
[1756311917956,0.13799485,112100.0,112090.0,1.90652151]
[1756311918548,0.22717905,112100.0,112090.0,1.3928521]
[1756311918750,0.22717905,112100.0,112090.0,1.90620151]
[1756311918949,0.26050905,112100.0,112090.0,1.54524151]
[1756311919155,0.22717905,112100.0,112090.0,1.54524151]
[1756311919348,0.17924037,112100.0,112090.0,1.54524151]
[1756311919548,0.22093037,112100.0,112090.0,1.54532151]
[1756311919744,0.20202037,112100.0,112090.0,1.54532151]
[1756311919949,0.20202037,112100.0,112090.0,1.54516151]
[1756311920460,0.21257037,112100.0,112090.0,1.54516151]
[1756311920655,0.25426037,112100.0,112090.0,0.1892521]
[1756311920853,0.25426037,112100.0,112090.0,0.9741621]
[1756311921052,0.61506037,112100.0,112090.0,0.8687]
[1756311921356,0.0891922,112090.0,112080.0,0.55840081]
[1756311921555,0.22630305,112090.0,112080.0,1.97696022]
[1756311921750,0.26297305,112090.0,112080.0,1.49965081]
[1756311922057,0.26297305,112090.0,112080.0,2.01300022]
[1756311922756,0.26297305,112090.0,112080.0,1.16696022]
[1756311922959,0.26297305,112090.0,112080.0,2.01248022]
[1756311923656,0.19297305,112090.0,112080.0,2.01248022]
[1756311924246,0.27480305,112090.0,112080.0,0.67643081]
[1756311924452,0.33038305,112090.0,112080.0,1.45075816]
[1756311924654,0.33038305,112090.0,112080.0,0.60583816]
[1756311924862,0.33038305,112090.0,112080.0,1.45171816]
[1756311925161,0.94118305,112090.0,112080.0,0.94904316]
[1756311925353,0.94118305,112090.0,112080.0,1.07269326]
[1756311926657,0.94318305,112090.0,112080.0,1.07269326]
[1756311927161,0.94318305,112090.0,112080.0,1.09741326]
[1756311927361,0.94318305,112090.0,112080.0,1.07269326]
[1756311928064,0.94318305,112090.0,112080.0,0.13761316]
[1756311928359,0.94318305,112090.0,112080.0,1.07269326]
[1756311928565,0.94318305,112090.0,112080.0,1.09092326]
[1756311929059,0.94318305,112090.0,112080.0,1.11564326]
[1756311930768,0.58238305,112090.0,112080.0,1.98979267]
[1756311930967,0.07788085,112090.0,112080.0,2.23979267]
[1756311931261,0.02983565,112090.0,112080.0,2.57979267]
[1756311931458,0.08036572,112100.0,112090.0,0.110752]
[1756311931658,0.08036572,112100.0,112090.0,1.12324141]
[1756311931859,0.19331972,112100.0,112090.0,1.12324141]
[1756311932056,0.33415972,112100.0,112090.0,1.037672]
[1756311932261,0.24497572,112100.0,112090.0,0.249092]
[1756311932461,0.13406572,112100.0,112090.0,0.609892]
[1756311932664,0.0779752,112100.0,112090.0,1.97004141]
[1756311933365,0.3018394,112100.0,112090.0,1.4319322]
[1756311933566,0.3018394,112100.0,112090.0,1.0958522]
[1756311933767,0.3018394,112100.0,112090.0,0.2500922]
[1756311933970,0.6626394,112100.0,112090.0,0.93157]
[1756311934163,0.6626394,112100.0,112090.0,0.93153]
[1756311934365,0.6626394,112100.0,112090.0,0.04766]
[1756311934566,1.37794361,112100.0,112090.0,0.001]
[1756311934769,2.28950301,112100.0,112090.0,0.001]
[1756311935265,2.22534361,112100.0,112090.0,0.001]
[1756311935865,0.1312422,112090.0,112080.0,0.01978316]
[1756311936064,1.13715721,112090.0,112080.0,0.01958316]
[1756311936767,0.1988101,112080.0,112070.0,1.07011641]
[1756311936971,0.1988101,112080.0,112070.0,1.06991641]
[1756311938069,0.5596101,112080.0,112070.0,0.06181]
[1756311938274,0.60875996,112080.0,112070.0,0.0251]
[1756311938670,0.60975996,112080.0,112070.0,0.08084]
[1756311938973,0.60975996,112080.0,112070.0,0.1700481]
[1756311939174,0.24895996,112080.0,112070.0,0.1957681]
[1756311939371,0.60975996,112080.0,112070.0,0.0251]
[1756311939675,0.60975996,112080.0,112070.0,0.1700481]
[1756311939884,0.60975996,112080.0,112070.0,0.08084]
[1756311940168,0.60975996,112080.0,112070.0,0.1700481]
[1756311940577,0.60875996,112080.0,112070.0,0.1957681]
[1756311941169,0.1998101,112080.0,112070.0,0.1957681]
[1756311941474,0.1998101,112080.0,112070.0,0.70911751]
[1756311942174,0.1621801,112080.0,112070.0,1.06991751]
[1756311942676,0.1998101,112080.0,112070.0,1.06991751]
[1756311942976,0.5606101,112080.0,112070.0,0.70911751]
[1756311943172,0.1439001,112080.0,112070.0,0.70911751]
[1756311943574,0.17158305,112080.0,112070.0,0.70911751]
[1756311943778,0.22749305,112080.0,112070.0,0.1957681]
[1756311944074,0.22749305,112080.0,112070.0,1.53479751]
[1756311944274,0.22749305,112080.0,112070.0,1.56051751]
[1756311944676,0.22649305,112080.0,112070.0,1.56051751]
[1756311945873,0.20921305,112080.0,112070.0,1.56051751]
[1756311946080,0.20921305,112080.0,112070.0,1.0471681]
[1756311946275,0.22749305,112080.0,112070.0,0.70911751]
[1756311946477,0.1998101,112080.0,112070.0,1.55959751]
[1756311946677,0.22749243,112080.0,112070.0,1.55959751]
[1756311947078,0.22749243,112080.0,112070.0,1.0462481]
[1756311947682,0.22749243,112080.0,112070.0,1.0203681]
[1756311947980,0.58729243,112080.0,112070.0,0.9308]
[1756311948482,0.58729243,112080.0,112070.0,1.0200081]
[1756311948780,0.58729243,112080.0,112070.0,1.0457281]
[1756311948975,0.58829243,112080.0,112070.0,0.1957681]
[1756311949172,0.58829243,112080.0,112060.0,0.0003342]
[1756311949173,0.1374181,112070.0,112060.0,0.0003342]
[1756311949372,1.02539173,112070.0,112060.0,0.0001342]
[1756311950177,1.87539173,112070.0,112060.0,0.0001342]
[1756311950378,0.22650043,112070.0,112060.0,0.5190655]
[1756311950573,0.22650043,112070.0,112060.0,0.1701903]
[1756311950776,0.58730043,112070.0,112060.0,0.0809742]
[1756311951082,0.58730043,112070.0,112060.0,0.0619442]
[1756311951381,0.58730043,112070.0,112060.0,0.0809742]
[1756311951783,0.58730043,112070.0,112060.0,0.1066942]
[1756311952677,0.58730043,112070.0,112060.0,0.0809742]
[1756311953581,0.58730043,112070.0,112060.0,0.0619442]
[1756311953777,0.58730043,112070.0,112060.0,0.0001342]
[1756311955381,1.35049559,112070.0,112060.0,0.0001342]
[1756311955586,1.49849559,112070.0,112060.0,0.0001342]
[1756311955786,0.1988261,112060.0,112050.0,0.0002]
[1756311955987,0.198834,112050.0,112040.0,0.06201]
[1756311956189,0.198842,112040.0,112030.0,0.08104]
[1756311956378,0.198842,112040.0,112030.0,0.1700799]
[1756311956579,0.198842,112040.0,112030.0,0.5308799]
[1756311956885,0.198842,112040.0,112030.0,1.06993506]
[1756311957087,0.22461275,112040.0,112030.0,1.06993506]
[1756311957991,0.22461275,112040.0,112030.0,0.5567399]
[1756311958192,0.22361275,112040.0,112030.0,1.06993506]
[1756311958488,0.22361275,112040.0,112030.0,0.5567399]
[1756311958688,0.22361275,112040.0,112030.0,0.1117]
[1756311958888,0.58441275,112040.0,112030.0,0.06681]
[1756311959188,2.19712791,112040.0,112030.0,0.008]
[1756311959987,2.22474504,112040.0,112030.0,0.008]
[1756311960289,2.22586504,112040.0,112030.0,0.008]
[1756311960494,2.22558504,112040.0,112030.0,0.008]
[1756311961091,1.37522504,112040.0,112030.0,0.008]
[1756311961292,2.22578504,112040.0,112030.0,0.008]
[1756311961595,1.37522504,112040.0,112030.0,0.005]
[1756311961792,1.37522504,112040.0,112030.0,0.006]
[1756311961995,2.22562504,112040.0,112030.0,0.006]
[1756311962195,2.22562504,112040.0,112030.0,0.003]
[1756311962396,1.44679227,112040.0,112030.0,0.003]
[1756311962600,2.29719227,112040.0,112030.0,0.003]
[1756311963498,1.44679227,112040.0,112030.0,0.003]
[1756311963699,2.29731227,112040.0,112030.0,0.003]
[1756311964096,0.93359711,112040.0,112030.0,0.003]
[1756311964301,1.44679227,112040.0,112030.0,0.003]
[1756311964502,2.29739227,112040.0,112030.0,0.02764]
[1756311964702,1.78419711,112040.0,112030.0,0.02764]
[1756311964903,1.78419711,112040.0,112030.0,0.003]
[1756311965102,2.29739227,112040.0,112030.0,0.003]
[1756311965297,1.78419711,112040.0,112030.0,0.003]
[1756311965503,2.29739227,112040.0,112030.0,0.003]
[1756311966099,0.0892717,111990.0,111980.0,0.12865133]
[1756311966408,0.1998457,111960.0,111950.0,0.02464]
[1756311966708,0.1998536,111950.0,111940.0,0.10851]
[1756311966902,0.58838657,111950.0,111940.0,0.10851]
[1756311967103,0.58838657,111950.0,111940.0,0.1689616]
[1756311967300,0.22758657,111950.0,111940.0,0.4478216]
[1756311967603,0.13528297,111950.0,111940.0,0.96101676]
[1756311967810,0.05719297,111950.0,111940.0,1.01661676]
[1756311968009,1.983965,111960.0,111940.0,1.01661676]
[1756311968310,1.707845,111960.0,111950.0,0.2542636]
[1756311968607,1.73513158,111960.0,111950.0,0.16496]
[1756311968803,1.75465158,111960.0,111950.0,0.16496]
[1756311969005,1.75465158,111960.0,111950.0,0.2542636]
[1756311969200,1.75465158,111960.0,111950.0,1.37825876]
[1756311969201,1.52742078,111960.0,111950.0,1.37825876]
[1756311969405,1.73512638,111960.0,111950.0,0.5042636]
[1756311969601,0.25464638,111960.0,111950.0,0.41496]
[1756311970003,0.28410638,111960.0,111950.0,0.41496]
[1756311970208,0.19481078,111960.0,111950.0,0.5042634]
[1756311970405,0.22245461,111960.0,111950.0,0.5042634]
[1756311970716,0.16641461,111960.0,111950.0,0.5042634]
[1756311970909,0.31175001,111960.0,111950.0,0.5042634]
[1756311971115,0.31175001,111960.0,111950.0,0.41496]
[1756311971414,0.31175001,111960.0,111950.0,0.5042634]
[1756311972222,0.0001342,111960.0,111950.0,1.37825856]
[1756311972715,0.0001342,111960.0,111950.0,2.35145372]
[1756311972916,0.0001342,111960.0,111950.0,1.83825856]
[1756311973108,0.0001342,111960.0,111950.0,2.35145372]
[1756311973312,1.62708717,111980.0,111970.0,0.1549376]
[1756311973517,1.65469233,111980.0,111970.0,0.76744276]
[1756311973719,0.29213203,111980.0,111970.0,0.76744276]
[1756311974011,0.29213203,111980.0,111970.0,0.2542476]
[1756311974719,0.31265203,111980.0,111970.0,0.2542476]
[1756311974919,0.31465203,111980.0,111970.0,0.2542476]
[1756311975321,0.03060516,111980.0,111970.0,1.01744276]
[1756311976019,0.03060516,111980.0,111970.0,1.37824276]
[1756311976208,0.04814986,112000.0,111990.0,0.2316817]
[1756311976414,0.2007109,112010.0,112000.0,0.1523437]
[1756311976614,0.28483397,112010.0,112000.0,0.74486886]
[1756311977015,0.28483397,112010.0,112000.0,1.59726886]
[1756311977210,0.15905817,112010.0,112000.0,1.59726886]
[1756311977416,0.19557817,112010.0,112000.0,1.59726886]
[1756311977616,0.28483397,112010.0,112000.0,0.74486886]
[1756311977816,0.28483397,112010.0,112000.0,1.59722886]
[1756311978214,0.28683397,112010.0,112000.0,0.74486886]
[1756311978519,0.2586458,112010.0,112000.0,0.14241]
[1756311978720,0.67016796,112010.0,112000.0,0.02464]
[1756311979121,0.67016796,112010.0,112000.0,0.03735]
[1756311979325,0.67016796,112010.0,112000.0,0.02464]
[1756311979523,0.69793264,112010.0,112000.0,0.2316737]
[1756311979823,0.33713264,112010.0,112000.0,0.2316737]
[1756311980016,0.28941048,112010.0,112000.0,0.1127]
[1756311980216,0.35361608,112010.0,112000.0,0.07426]
[1756311980920,0.35361608,112010.0,112000.0,0.1127]
[1756311981223,0.35361608,112010.0,112000.0,0.07426]
[1756311981921,0.2566537,112000.0,111990.0,0.4724]
[1756311982116,0.30440384,112000.0,111990.0,0.3608]
[1756311982316,0.817599,112000.0,111990.0,0.3608]
[1756311982517,0.2566617,111990.0,111980.0,0.09377103]
[1756311982824,1.178407,111990.0,111980.0,0.01951103]
[1756311983117,0.66521184,111990.0,111980.0,0.13343063]
[1756311983323,0.30441184,111990.0,111980.0,0.18305063]
[1756311984122,0.30441184,111990.0,111980.0,0.22149063]
[1756311984421,0.66521184,111990.0,111980.0,0.22149063]
[1756311985126,0.66521184,111990.0,111980.0,0.13221103]
[1756311985623,0.66521184,111990.0,111980.0,0.04415103]
[1756311985825,0.66621184,111990.0,111980.0,0.04415103]
[1756311986622,0.66721184,111990.0,111980.0,0.04415103]
[1756311987120,0.66721184,111990.0,111980.0,0.14614073]
[1756311987325,0.30641184,111990.0,111980.0,0.18305073]
[1756311987524,0.30641184,111990.0,111980.0,0.09377103]
[1756311987826,0.66721184,111990.0,111980.0,0.05686103]
[1756311988325,0.64686122,111990.0,111980.0,0.05686103]
[1756311988522,0.64686122,111990.0,111980.0,0.01951103]
[1756311989225,0.71106682,111990.0,111980.0,0.01951103]
[1756311989425,0.64686122,111990.0,111980.0,0.22061073]
[1756311989724,0.46781952,111990.0,111980.0,1.01236589]
[1756311989925,0.1549531,111990.0,111980.0,1.37316589]
[1756311990726,0.2782148,111990.0,111980.0,2.22288589]
[1756311990922,0.3141348,111990.0,111980.0,2.22288589]
[1756311991121,0.3141348,111990.0,111980.0,0.97109589]
[1756311991328,0.3334748,111990.0,111980.0,1.32009073]
[1756311991624,0.64634122,111990.0,111980.0,1.34865073]
[1756311991827,0.64634122,111990.0,111980.0,0.01951103]
[1756311992222,0.64634122,111990.0,111980.0,0.10879073]
[1756311992415,0.16227952,111990.0,111980.0,1.12316589]
[1756311992620,0.14100952,111990.0,111980.0,1.37316589]
[1756311992821,0.05885952,111990.0,111980.0,1.37316589]
[1756311993122,0.14813122,111990.0,111980.0,1.37316589]
[1756311993329,0.28232122,111990.0,111980.0,1.09929073]
[1756311993529,0.28232122,111990.0,111980.0,1.07073073]
[1756311993729,0.28232122,111990.0,111980.0,1.09929073]
[1756311994229,0.28232122,111990.0,111980.0,0.24917073]
[1756311994423,0.34652682,111990.0,111980.0,1.07077073]
[1756311994729,0.34652682,111990.0,111980.0,1.07077063]
[1756311994922,0.34652682,111990.0,111980.0,0.96157103]
[1756311995129,1.47052198,111990.0,111980.0,0.01951103]
[1756311995531,0.2174196,111980.0,111970.0,0.0001]
[1756311995728,0.2533476,111970.0,111960.0,1.11010898]
[1756311995925,0.32887958,111970.0,111960.0,0.92931348]
[1756311996631,0.32887958,111970.0,111960.0,1.03131908]
[1756311997232,0.32887958,111970.0,111960.0,0.02006348]
[1756311997432,0.68967958,111970.0,111960.0,0.86998348]
[1756311998130,0.68967958,111970.0,111960.0,1.07977908]
[1756311998325,0.23959198,111970.0,111960.0,1.95377424]
[1756311998826,0.02739952,111970.0,111960.0,2.20449424]
[1756311999234,0.21646712,111970.0,111960.0,1.08049908]
[1756311999424,0.21646712,111970.0,111960.0,1.01148348]
[1756311999425,0.28074712,111970.0,111960.0,1.01148348]
[1756311999734,0.28074712,111970.0,111960.0,0.98292348]
[1756311999924,0.32887958,111970.0,111960.0,0.04492348]
[1756312000125,0.32887958,111970.0,111960.0,0.001]
[1756312000431,1.20287474,111970.0,111960.0,0.001]
[1756312001234,0.68967958,111970.0,111960.0,0.001]
[1756312002825,0.23959198,111970.0,111960.0,0.5914756]
[1756312003137,0.32887958,111970.0,111960.0,1.10467076]
[1756312003330,0.23959198,111970.0,111960.0,1.10467076]
[1756312003636,0.18433198,111970.0,111960.0,1.10467076]
[1756312004034,0.27361958,111970.0,111960.0,1.10467076]
[1756312004434,0.07553198,111970.0,111960.0,1.10467076]
[1756312004826,0.27361958,111970.0,111960.0,1.10467076]
[1756312005232,0.32887958,111970.0,111960.0,0.74387076]
[1756312006530,0.68967958,111970.0,111960.0,0.02486]
[1756312006734,0.68967958,111970.0,111960.0,0.001]
[1756312007535,1.20287474,111970.0,111960.0,0.001]
[1756312007735,0.68967958,111970.0,111960.0,0.001]
[1756312008037,2.30455474,111970.0,111960.0,0.001]
[1756312009030,0.2533556,111960.0,111950.0,0.0001]
[1756312009231,0.2533636,111950.0,111940.0,0.02396]
[1756312009536,0.28076312,111950.0,111940.0,0.02386]
[1756312009724,0.28076312,111950.0,111940.0,0.1131716]
[1756312009928,0.64156312,111950.0,111940.0,0.1131716]
[1756312010128,0.64156312,111950.0,111940.0,0.1268816]
[1756312010329,0.64056312,111950.0,111940.0,0.1619116]
[1756312011038,0.64056312,111950.0,111940.0,0.03757]
[1756312011233,0.64056312,111950.0,111940.0,0.02386]
[1756312011427,0.27976312,111950.0,111930.0,1.27487661]
[1756312011634,0.2533716,111940.0,111930.0,1.39448621]
[1756312011832,0.28048532,111940.0,111930.0,1.39438621]
[1756312012138,0.27748532,111940.0,111930.0,1.42294621]
[1756312012336,0.27429138,111940.0,111930.0,1.42294621]
[1756312012738,0.27429138,111940.0,111930.0,1.93914137]
[1756312012939,0.16406,111940.0,111930.0,1.94214137]
[1756312013130,0.2533716,111940.0,111930.0,1.94214137]
[1756312014444,0.2533716,111940.0,111930.0,1.42894621]
[1756312014635,0.2763961,111950.0,111940.0,0.2322916]
[1756312014938,0.66408058,111950.0,111940.0,0.74548676]
[1756312015142,0.1535915,111940.0,111930.0,1.47666221]
[1756312015337,0.2533715,111940.0,111930.0,0.50136661]
[1756312015540,0.2533715,111940.0,111930.0,0.99808661]
[1756312016136,0.6141715,111940.0,111930.0,0.02614661]
[1756312016439,0.2154595,111930.0,111920.0,0.0001]
[1756312016646,0.1536075,111920.0,111910.0,0.11488]
[1756312016848,0.6141875,111920.0,111910.0,0.11478]
[1756312017242,0.6141875,111920.0,111910.0,0.02386]
[1756312017938,2.1131875,111920.0,111910.0,0.02386]
[1756312018246,0.2300454,111910.0,111900.0,0.9807885]
[1756312018442,0.2533954,111910.0,111900.0,1.0045485]
[1756312018645,0.2505934,111900.0,111890.0,0.46045591]
[1756312018841,0.23507009,111900.0,111890.0,1.08044731]
[1756312019042,0.59587009,111900.0,111890.0,0.01990591]
[1756312019842,0.2506014,111890.0,111880.0,0.0001]
[1756312020146,0.2506094,111880.0,111870.0,0.36366518]
[1756312020340,0.2496094,111880.0,111870.0,0.25005518]
[1756312020537,0.6104094,111880.0,111870.0,0.1461274]
[1756312020739,0.6104094,111880.0,111860.0,0.46074344]
[1756312020740,0.2506174,111870.0,111860.0,0.46074344]
[1756312020938,0.2506174,111870.0,111850.0,1.13736698]
[1756312020939,0.06135,111860.0,111850.0,0.16078778]
[1756312021239,0.0893834,111850.0,111840.0,0.0001]
[1756312021435,0.1531014,111840.0,111830.0,0.09075]
[1756312021636,0.5139014,111840.0,111820.0,0.97846226]
[1756312021840,0.1531094,111830.0,111820.0,0.94502676]
[1756312022040,0.06371,111830.0,111820.0,0.94492676]
[1756312022338,0.06371,111830.0,111820.0,1.03433416]
[1756312022643,0.06371,111830.0,111820.0,0.82599492]
[1756312022835,0.3608,111840.0,111830.0,0.0893994]
[1756312023039,0.5139014,111840.0,111830.0,0.2097694]
[1756312023348,1.02709656,111840.0,111830.0,0.09165]
[1756312023538,0.5139014,111840.0,111830.0,0.09065]
[1756312023852,0.06371,111840.0,111830.0,0.72196456]
[1756312024041,0.1531014,111840.0,111830.0,0.2087694]
[1756312024235,0.5139014,111840.0,111830.0,0.2087694]
[1756312024437,0.42451,111840.0,111830.0,0.2087694]
[1756312024639,0.02901,111840.0,111830.0,0.2087694]
[1756312025035,0.02901,111840.0,111830.0,0.4587694]
[1756312025244,0.42451,111850.0,111840.0,0.2087614]
[1756312025444,0.5138934,111850.0,111840.0,0.11937]
[1756312025644,0.5138934,111850.0,111840.0,0.05597]
[1756312025846,0.42451,111850.0,111840.0,0.1800414]
[1756312026047,0.5138934,111850.0,111840.0,0.2087614]
[1756312026342,0.5138934,111850.0,111840.0,0.09065]
[1756312026547,0.02901,111850.0,111840.0,0.1800414]
[1756312026749,0.02901,111850.0,111840.0,0.5695614]
[1756312027048,0.03301,111850.0,111840.0,0.2087614]
[1756312027636,0.03801,111850.0,111840.0,0.2087614]
[1756312028041,0.03801,111850.0,111840.0,0.4587614]
[1756312029152,0.009,111850.0,111840.0,1.33275656]
[1756312029452,0.009,111850.0,111840.0,0.8195614]
[1756312029649,0.009,111850.0,111840.0,1.33275656]
[1756312030039,0.02901,111860.0,111850.0,0.2087532]
[1756312030238,0.51700594,111870.0,111850.0,0.5695532]
[1756312030450,0.06371,111870.0,111860.0,0.72194036]
[1756312030646,0.22489136,111880.0,111870.0,0.11937]
[1756312030844,0.1764717,111880.0,111870.0,0.05597]
[1756312031246,1.05046686,111880.0,111870.0,0.05597]
[1756312031945,1.07913518,111880.0,111870.0,0.05597]
[1756312032141,1.08413518,111880.0,111870.0,0.05597]
[1756312032446,0.59398471,111880.0,111870.0,0.09065]
[1756312032845,0.63710471,111880.0,111870.0,0.07887]
[1756312033055,0.63710471,111880.0,111870.0,0.11355]
[1756312033350,1.15229987,111880.0,111870.0,0.05597]
[1756312033551,1.15229987,111880.0,111860.0,0.2030252]
[1756312033552,0.2195972,111870.0,111860.0,0.2030252]
[1756312033752,0.24826552,111870.0,111860.0,0.2496652]
[1756312034049,0.12575832,111870.0,111860.0,0.2496652]
[1756312034350,0.20612552,111870.0,111860.0,0.2496652]
[1756312034556,0.21512552,111870.0,111860.0,0.2496652]
[1756312034851,0.24826552,111870.0,111860.0,0.2506652]
[1756312035247,0.24926552,111870.0,111860.0,0.2506652]
[1756312035448,0.24926552,111870.0,111860.0,0.2219452]
[1756312035753,0.61006552,111870.0,111860.0,0.07987]
[1756312035955,0.61006552,111870.0,111860.0,0.2506651]
[1756312036159,0.61006552,111870.0,111860.0,0.2219451]
[1756312037246,0.61006552,111870.0,111860.0,0.07987]
[1756312037453,0.61006552,111870.0,111860.0,0.2219451]
[1756312037848,0.24926552,111870.0,111860.0,0.2209451]
[1756312038048,0.61006552,111870.0,111860.0,0.2209451]
[1756312038349,0.61106552,111870.0,111860.0,0.04497]
[1756312038655,0.2196053,111860.0,111850.0,0.11365]
[1756312038952,0.24827362,111860.0,111850.0,0.07887]
[1756312039347,0.24827362,111860.0,111850.0,0.2029333]
[1756312040755,0.05767832,111860.0,111850.0,1.12366846]